bitfinex/quotes_SOLUSD_20250508
["timestamp","ask_amount","ask_price","bid_price","bid_amount"]
[1746727859357,36.38817588,159.89,159.83,15.46]
[1746727859659,30.13361758,159.88,159.84,30.13361758]
[1746727861573,6.2545583,159.89,159.84,30.13361758]
[1746727861777,6.2545583,159.89,159.86,30.13361758]
[1746727861941,36.38817588,159.89,159.84,30.13361758]
[1746727862145,6.2545583,159.89,159.84,30.13361758]
[1746727862365,30.13361758,159.88,159.84,30.13361758]
[1746727862774,30.13361758,159.88,159.83,15.46]
[1746727862956,30.13361758,159.87,159.83,15.46]
[1746727863175,30.13361758,159.87,159.84,15.46]
[1746727863694,6.25625625,159.84,159.76,1.5088]
[1746727863897,30.13361758,159.83,159.79,30.13361758]
[1746727864067,30.13361758,159.82,159.77,15.46]
[1746727864267,30.13361758,159.82,159.77,45.59361758]
[1746727864483,30.13361758,159.82,159.78,45.59361758]
[1746727865494,30.13361758,159.82,159.76,6.25936428]
[1746727865706,30.13361758,159.82,159.79,15.46]
[1746727866382,30.13361758,159.83,159.79,51.85182948]
[1746727866574,30.13361758,159.83,159.79,21.7182119]
[1746727866776,30.13361758,159.83,159.79,51.85182948]
[1746727867082,6.25601778,159.85,159.79,21.7182119]
[1746727867270,36.38963536,159.85,159.81,30.13361758]
[1746727867684,30.13361758,159.85,159.81,30.13361758]
[1746727867890,36.38949819,159.85,159.81,30.13361758]
[1746727868285,30.13361758,159.84,159.8,6.25760522]
[1746727868589,36.38949819,159.85,159.8,36.3912228]
[1746727869591,36.38949819,159.85,159.8,30.13361758]
[1746727869784,36.38949819,159.85,159.8,36.39142472]
[1746727870293,142.65560727,159.86,159.81,30.13361758]
[1746727870475,30.13361758,159.85,159.81,30.13361758]
[1746727870878,30.13361758,159.84,159.8,30.13361758]
[1746727871286,30.13361758,159.85,159.81,30.13361758]
[1746727871599,136.4,159.86,159.82,30.13361758]
[1746727871782,166.53361758,159.86,159.82,30.13361758]
[1746727872403,30.13361758,159.85,159.81,30.13361758]
[1746727872596,30.13361758,159.84,159.8,6.25777669]
[1746727872778,30.13361758,159.84,159.8,36.39139427]
[1746727873093,30.13361758,159.84,159.79,21.718095]
[1746727873300,30.13361758,159.84,159.8,30.13361758]
[1746727873798,36.3899812,159.84,159.78,6.25857043]
[1746727874095,30.13361758,159.83,159.79,15.46]
[1746727874268,30.13361758,159.82,159.79,15.46]
[1746727876294,30.13361758,159.8,159.76,36.39292799]
[1746727876498,30.13361758,159.8,159.77,15.46]
[1746727876809,30.13361758,159.81,159.77,15.46]
[1746727876987,30.13361758,159.8,159.77,15.46]
[1746727877302,30.13361758,159.8,159.76,30.13361758]
[1746727877481,30.13361758,159.8,159.78,15.46]
[1746727877681,6.25664768,159.83,159.78,15.46]
[1746727877883,30.13361758,159.8,159.79,15.46]
[1746727878710,30.13361758,159.81,159.79,15.46]
[1746727879007,30.13361758,159.82,159.79,15.46]
[1746727879598,6.25624954,159.85,159.79,45.59361758]
[1746727879782,6.25624954,159.85,159.81,30.13361758]
[1746727879984,30.13361758,159.84,159.8,30.13361758]
[1746727880185,30.13361758,159.84,159.76,80.13361758]
[1746727880186,6.25624954,159.85,159.74,82.5241]
[1746727880388,136.4,159.84,159.75,21.7197809]
[1746727880613,30.13361758,159.82,159.78,30.13361758]
[1746727880788,30.13361758,159.83,159.78,30.13361758]
[1746727881713,30.13361758,159.82,159.77,30.13361758]
[1746727881909,36.39069839,159.82,159.77,30.13361758]
[1746727882611,30.13361758,159.81,159.78,15.46]
[1746727882814,36.39069839,159.82,159.78,15.46]
[1746727883018,36.39069839,159.82,159.78,45.59361758]
[1746727883316,36.39069839,159.82,159.78,15.46]
[1746727883819,18.81188501,159.82,159.78,15.46]
[1746727884501,18.81188501,159.81,159.78,15.46]
[1746727885910,6.25782227,159.8,159.78,15.46]
[1746727886113,25.06945952,159.81,159.78,15.46]
[1746727886412,18.81188501,159.82,159.78,15.46]
[1746727886812,18.81188501,159.82,159.79,15.46]
[1746727887410,6.25664768,159.83,159.79,15.46]
[1746727887601,18.81188501,159.82,159.79,15.46]
[1746727888020,25.0689933,159.82,159.79,15.46]
[1746727888393,18.81188501,159.81,159.79,15.46]
[1746727889342,18.81188501,159.82,159.79,15.46]
[1746727889698,18.81188501,159.81,159.79,15.46]
[1746727890017,25.06945055,159.81,159.79,15.46]
[1746727890724,25.06945055,159.81,159.74,6.30008191]
[1746727890725,18.81188501,159.8,159.74,6.30008191]
[1746727890899,18.81188501,159.79,159.75,15.46]
[1746727891099,18.81188501,159.79,159.76,15.46]
[1746727891901,142.65756554,159.81,159.76,15.46]
[1746727892101,18.81188501,159.8,159.76,15.46]
[1746727892605,18.81188501,159.79,159.76,15.46]
[1746727893016,142.65756554,159.81,159.74,6.30010992]
[1746727893017,18.81188501,159.77,159.74,0.04]
[1746727893316,18.81188501,159.78,159.75,15.46]
[1746727894123,18.81188501,159.77,159.75,15.46]
[1746727895821,37.62377002,159.76,159.74,0.04]
[1746727896028,175.64837002,159.76,159.74,0.04]
[1746727896204,18.81188501,159.75,159.74,0.04]
[1746727896409,18.81188501,159.75,159.74,15.5]
[1746727897030,18.81188501,159.75,159.74,0.04]
[1746727897217,158.31060473,159.74,159.6,57.8726]
[1746727897416,18.81188501,159.66,159.62,18.81188501]
[1746727897723,30.15644475,159.67,159.62,56.15644475]
[1746727898105,30.15644475,159.67,159.62,26.0]
[1746727898329,36.41942054,159.67,159.63,30.15644475]
[1746727898532,30.15644475,159.67,159.62,26.0]
[1746727898711,36.41949078,159.67,159.61,21.72520216]
[1746727898895,36.41949078,159.67,159.63,30.15644475]
[1746727899103,36.41909162,159.68,159.63,30.15644475]
[1746727900213,30.15644475,159.67,159.62,36.42114504]
[1746727900836,31.67644475,159.67,159.62,6.26470029]
[1746727901011,30.15644475,159.67,159.63,15.48]
[1746727901330,36.41870195,159.69,159.65,30.15644475]
[1746727901830,36.41870195,159.69,159.64,15.48]
[1746727902010,36.41870195,159.69,159.64,45.63644475]
[1746727902211,30.15644475,159.68,159.64,45.63644475]
[1746727902511,30.15644475,159.67,159.61,6.26512936]
[1746727902713,30.15644475,159.66,159.62,15.48]
[1746727903028,30.15644475,159.68,159.64,30.15644475]
[1746727903538,30.15644475,159.67,159.62,15.48]
[1746727903721,36.41966486,159.67,159.63,30.15644475]
[1746727904232,6.26322011,159.67,159.64,15.48]
[1746727904743,36.41966486,159.67,159.64,15.48]
[1746727905239,30.15644475,159.65,159.59,24.91565809]
[1746727905409,30.15644475,159.65,159.61,30.15644475]
[1746727905714,30.15644475,159.66,159.61,30.15644475]
[1746727905923,6.26370184,159.65,159.61,30.15644475]
[1746727906112,36.42014659,159.65,159.6,30.15644475]
[1746727906307,30.15644475,159.64,159.6,30.15644475]
[1746727906526,30.15644475,159.64,159.61,15.48]
[1746727907516,36.42014659,159.65,159.61,15.48]
[1746727908443,6.26370184,159.65,159.62,30.15644475]
[1746727910031,36.41975428,159.66,159.61,15.48]
[1746727910414,36.41975428,159.66,159.62,30.15644475]
[1746727911219,6.26330953,159.66,159.62,30.15644475]
[1746727911533,30.15644475,159.7,159.65,30.15644475]
[1746727911728,30.15644475,159.69,159.64,30.15644475]
[1746727911937,36.41925087,159.68,159.64,30.15644475]
[1746727912436,36.41871354,159.69,159.64,30.15644475]
[1746727912636,30.15644475,159.68,159.64,30.15644475]
[1746727912830,30.15644475,159.68,159.61,15.48]
[1746727913019,30.15644475,159.66,159.62,15.48]
[1746727913332,30.15644475,159.65,159.63,15.48]
[1746727914136,6.26409421,159.64,159.63,15.48]
[1746727916130,6.26370184,159.65,159.63,15.48]
[1746727919631,136.4,159.67,159.64,18.85032048]
[1746727919815,136.4,159.67,159.65,18.85032048]
[1746727920013,6.26268041,159.68,159.65,18.85032048]
[1746727920630,25.15258113,159.69,159.65,18.85032048]
[1746727921824,0.04000005,159.69,159.65,18.85032048]
[1746727922050,0.04000005,159.69,159.67,18.85032048]
[1746727922224,0.04000005,159.69,159.68,18.85032048]
[1746727923744,0.04000005,159.69,159.68,69.41157644]
[1746727923947,18.85032048,159.84,159.72,94.64964886]
[1746727924122,18.85032048,159.82,159.77,18.85032048]
[1746727924441,18.85032048,159.81,159.72,94.64964886]
[1746727924641,18.85032048,159.81,159.76,18.85032048]
[1746727924950,25.10814831,159.8,159.76,18.85032048]
[1746727925241,18.85032048,159.79,159.7,65.65383289]
[1746727925447,18.85032048,159.79,159.74,18.85032048]
[1746727925616,18.85032048,159.79,159.75,18.85032048]
[1746727925820,30.11269738,159.79,159.71,60.12964886]
[1746727926048,30.11269738,159.79,159.75,30.11269738]
[1746727926535,36.3711447,159.79,159.75,30.11269738]
[1746727930243,30.11269738,159.76,159.71,30.11269738]
[1746727930545,137.9781,159.78,159.68,6.6566]
[1746727930546,30.11269738,159.77,159.73,30.11269738]
[1746727931131,30.11269738,159.76,159.72,45.59269738]
[1746727932355,155.93842433,159.78,159.74,30.11269738]
[1746727932536,154.36032433,159.78,159.74,30.11269738]
[1746727933240,148.10158131,159.78,159.75,30.11269738]
[1746727933443,148.10158131,159.78,159.76,30.11269738]
[1746727934147,148.10158131,159.78,159.77,30.11269738]
[1746727934546,11.70158131,159.78,159.77,30.11269738]
[1746727934725,11.70158131,159.78,159.76,30.11269738]
[1746727935348,11.70158131,159.78,159.77,30.11269738]
[1746727935557,142.65715864,159.82,159.77,30.11269738]
[1746727935736,142.65715864,159.82,159.79,30.11269738]
[1746727935941,142.65715864,159.82,159.78,45.59269738]
[1746727936450,172.76985602,159.82,159.78,45.59269738]
[1746727939666,142.65715864,159.82,159.78,45.59269738]
[1746727940043,172.76985602,159.82,159.78,15.48]
[1746727940757,172.76985602,159.82,159.78,45.59269738]
[1746727941266,142.65715864,159.82,159.78,45.59269738]
[1746727941567,142.65715864,159.82,159.79,30.11269738]
[1746727942262,172.76985602,159.82,159.78,45.59269738]
[1746727942448,142.65715864,159.82,159.79,30.11269738]
[1746727942767,172.76985602,159.82,159.78,15.48]
[1746727943467,172.76985602,159.82,159.78,45.59269738]
[1746727944052,172.76985602,159.82,159.78,15.48]
[1746727944259,172.76985602,159.82,159.78,45.59269738]
[1746727944638,6.25715864,159.82,159.79,30.11269738]
[1746727944843,137.9608,159.86,159.81,30.11269738]
[1746727945066,6.25508225,159.87,159.83,30.11269738]
[1746727945266,6.25508225,159.87,159.84,15.46]
[1746727945970,25.05565497,159.87,159.84,15.46]
[1746727946554,40.69214805,159.88,159.84,15.46]
[1746727946860,18.80057272,159.87,159.84,15.46]
[1746727948662,6.25547353,159.86,159.84,15.46]
[1746727949634,6.25501683,159.88,159.85,18.80057272]
[1746727950166,6.25501683,159.88,159.84,34.26057272]
[1746727950473,25.05558955,159.88,159.84,15.46]
[1746727950842,18.80057272,159.85,159.78,26.0]
[1746727951043,18.80057272,159.83,159.79,15.46]
[1746727951244,0.14216157,159.86,159.79,34.26057272]
[1746727951245,18.80057272,159.84,159.79,34.26057272]
[1746727953170,6.25664768,159.83,159.79,34.26057272]
[1746727954255,6.25664768,159.83,159.8,18.80057272]
[1746727954647,6.25664768,159.83,159.79,15.46]
[1746727954841,6.25664768,159.83,159.8,18.80057272]
[1746727955067,6.25664768,159.83,159.79,15.46]
[1746727955242,6.25664768,159.83,159.79,34.26057272]
[1746727955451,6.25664768,159.83,159.8,18.80057272]
[1746727957362,136.4,159.84,159.82,18.80057272]
[1746727957675,142.65632881,159.84,159.83,18.80057272]
[1746727958255,136.4,159.84,159.83,18.80057272]
[1746727960272,136.4,159.84,159.81,6.2572125]
[1746727960648,136.4,159.84,159.83,18.80057272]
[1746727960960,136.4,159.84,159.81,6.2572125]
[1746727961158,136.4,159.84,159.83,18.80057272]
[1746727962158,6.25483414,159.88,159.83,18.80057272]
[1746727962355,6.25440244,159.89,159.87,18.80057272]
[1746727962557,6.25440244,159.89,159.88,15.46]
[1746727965076,40.69072473,159.89,159.88,15.58]
[1746727968473,21.89015201,159.89,159.88,15.58]
[1746727969581,40.69072473,159.89,159.88,15.58]
[1746727970783,40.8328863,159.89,159.79,1.5711]
[1746727971072,18.80057272,159.86,159.79,1.5711]
[1746727971286,18.80057272,159.85,159.81,18.80057272]
[1746727971474,18.80057272,159.85,159.82,15.6]
[1746727972880,6.25625625,159.84,159.82,15.6]
[1746727973179,6.25625625,159.84,159.83,15.6]
[1746727974887,25.05682897,159.84,159.83,15.6]
[1746727976095,40.69746961,159.84,159.83,15.58]
[1746727976484,21.89689689,159.84,159.83,15.58]
[1746727976688,40.69746961,159.84,159.83,15.58]
[1746727978193,40.69746961,159.84,159.78,18.80057272]
[1746727978496,21.89689689,159.84,159.83,15.56]
[1746727979797,40.69746961,159.84,159.83,15.56]
[1746727981097,26.0,159.81,159.74,1.69446598]
[1746727981299,18.80057272,159.79,159.75,15.54]
[1746727981481,136.4,159.8,159.76,18.80057272]
[1746727982402,136.4,159.8,159.77,34.34057272]
[1746727982699,136.4,159.8,159.79,18.80057272]
[1746727982899,11.69712703,159.84,159.79,18.80057272]
[1746727983096,11.69712703,159.84,159.83,18.80057272]
[1746727983277,11.69712703,159.84,159.83,34.36057272]
[1746727983797,136.4,159.88,159.83,34.36057272]
[1746727983976,136.4,159.88,159.86,18.80057272]
[1746727984179,142.65476541,159.88,159.86,18.80057272]
[1746727984383,168.65476541,159.88,159.86,18.80057272]
[1746727985596,168.65476541,159.88,159.85,18.80057272]
[1746727986701,168.65476541,159.88,159.84,18.80057272]
[1746727986901,168.65476541,159.88,159.85,15.54]
[1746727987080,168.65476541,159.88,159.85,34.34057272]
[1746727987698,18.80057272,159.86,159.79,6.5873]
[1746727987995,18.80057272,159.84,159.8,34.40057272]
[1746727989100,6.25664768,159.83,159.8,34.40057272]
[1746727989395,6.25664768,159.83,159.81,18.80057272]
[1746727989775,6.25635242,159.84,159.81,30.08888773]
[1746727989971,6.25547353,159.86,159.82,30.08888773]
[1746727990184,142.65523401,159.87,159.85,30.08888773]
[1746727990380,136.4,159.87,159.86,45.68888773]
[1746727990587,6.25390869,159.9,159.86,45.68888773]
[1746727990787,6.25390869,159.9,159.87,30.08888773]
[1746727990980,26.0,159.88,159.87,30.08888773]
[1746727992810,32.25469101,159.88,159.87,30.08888773]
[1746727993613,6.2535176,159.91,159.87,30.08888773]
[1746727993785,6.2535176,159.91,159.88,30.08888773]
[1746727994683,6.2535176,159.91,159.89,30.08888773]
[1746727995096,6.2535176,159.91,159.88,30.08888773]
[1746727995984,162.4,159.92,159.88,30.08888773]
[1746727996195,6.25327474,159.92,159.91,30.08888773]
[1746727996389,6.25286659,159.93,159.91,30.08888773]
[1746727996596,6.25286659,159.93,159.92,15.56]
[1746727997481,6.25156289,159.96,159.92,45.64888773]
[1746727997700,6.25156289,159.96,159.94,30.08888773]
[1746727997909,6.25156289,159.96,159.93,30.08888773]
[1746727998207,6.25156289,159.96,159.92,45.64888773]
[1746727998418,6.25156289,159.96,159.93,30.08888773]
[1746727999598,21.87910232,159.97,159.86,56.52846157]
[1746727999801,21.87910232,159.97,159.85,26.0]
[1746727999802,30.08888773,159.91,159.87,15.62]
[1746728000110,30.08888773,159.92,159.87,15.62]
[1746728000403,30.08888773,159.9,159.84,1.6636]
[1746728000606,30.08888773,159.9,159.85,45.70888773]
[1746728001003,30.08888773,159.89,159.85,15.62]
[1746728001605,6.25469101,159.88,159.85,15.62]
[1746728001804,6.25469101,159.88,159.85,45.70888773]
[1746728002893,6.25469101,159.88,159.85,15.62]
[1746728003207,6.25469101,159.88,159.85,30.08888773]
[1746728003396,6.25469101,159.88,159.86,15.62]
[1746728003594,56.08888773,159.92,159.87,30.08888773]
[1746728003800,6.2535176,159.91,159.88,30.08888773]
[1746728003987,6.2535176,159.91,159.87,30.08888773]
[1746728005492,6.2535176,159.91,159.88,30.08888773]
[1746728006414,6.25286982,159.93,159.9,30.08888773]
[1746728006710,6.25286982,159.93,159.91,30.08888773]
[1746728006921,168.65249341,159.94,159.92,15.6]
[1746728007413,6.25204254,159.95,159.93,30.08888773]
[1746728007622,136.4,159.97,159.93,30.08888773]
[1746728008115,6.25165512,159.96,159.93,30.08888773]
[1746728008319,6.25121699,159.97,159.94,30.08888773]
[1746728008510,6.25121699,159.97,159.95,30.08888773]
[1746728008710,6.25121699,159.97,159.94,30.08888773]
[1746728009711,6.25121699,159.97,159.93,30.08888773]
[1746728009910,6.25121699,159.97,159.94,30.08888773]
[1746728012302,24.52766779,159.98,159.95,30.08888773]
[1746728013725,24.52766779,159.98,159.92,21.85306482]
[1746728014021,18.27676098,159.98,159.96,30.08888773]
[1746728014234,24.52755086,159.98,159.95,30.08888773]
[1746728014727,30.08888773,159.97,159.96,15.52]
[1746728015106,166.48888773,159.97,159.89,6.4347]
[1746728015410,6.25234462,159.94,159.9,15.52]
[1746728015608,6.25234462,159.94,159.91,30.08888773]
[1746728015808,6.25234462,159.94,159.9,15.52]
[1746728016123,6.25234462,159.94,159.9,45.60888773]
[1746728016530,36.34095724,159.95,159.91,15.52]
[1746728016905,36.34095724,159.95,159.92,15.52]
[1746728017312,30.08888773,159.93,159.92,15.52]
[1746728017523,36.3416233,159.93,159.92,15.52]
[1746728018103,6.25273557,159.93,159.92,15.52]
[1746728019124,36.3416233,159.93,159.92,15.52]
[1746728020031,6.25273557,159.93,159.92,15.52]
[1746728021009,36.3416233,159.93,159.92,15.52]
[1746728021205,63.9610233,159.93,159.83,1.6646]
[1746728021424,30.08888773,159.9,159.86,15.5]
[1746728021728,6.25429983,159.89,159.86,45.58888773]
[1746728022525,6.25390869,159.9,159.86,45.58888773]
[1746728025132,6.25390869,159.9,159.86,15.5]
[1746728025337,6.25390869,159.9,159.86,45.58888773]
[1746728025718,6.25364502,159.91,159.87,30.08888773]
[1746728025918,6.25364502,159.91,159.88,30.08888773]
[1746728027913,6.25364502,159.91,159.86,15.5]
[1746728028229,6.25364502,159.91,159.87,30.08888773]
[1746728029636,6.25364502,159.91,159.86,15.5]
[1746728029837,6.25364502,159.91,159.87,30.08888773]
[1746728030740,36.34253275,159.91,159.86,45.58888773]
[1746728031527,6.25364502,159.91,159.87,30.08888773]
[1746728033024,30.08888773,159.89,159.88,15.46]
[1746728034126,36.34318756,159.89,159.88,15.46]
[1746728034450,51.97893713,159.89,159.88,15.46]
[1746728034647,188.37893713,159.89,159.88,15.46]
[1746728037918,188.37893713,159.89,159.8,12.37138304]
[1746728038119,30.08888773,159.85,159.78,6.25850494]
[1746728038428,26.0,159.87,159.79,45.54888773]
[1746728038429,30.08888773,159.84,159.79,45.54888773]
[1746728039124,6.25664768,159.83,159.8,15.46]
[1746728040431,6.25664768,159.83,159.8,45.54888773]
[1746728041246,36.34508309,159.85,159.8,15.46]
[1746728041447,6.25619536,159.85,159.81,15.46]
[1746728041757,6.25619536,159.85,159.81,45.54888773]
[1746728042147,36.34508309,159.85,159.81,45.54888773]
[1746728042348,36.34508309,159.85,159.81,15.46]
[1746728044351,32.25619536,159.85,159.82,30.08888773]
[1746728044658,6.25619536,159.85,159.81,45.54888773]
[1746728044856,32.25619536,159.85,159.81,45.54888773]
[1746728045451,32.25619536,159.85,159.81,15.46]
[1746728045653,62.34508309,159.85,159.81,15.46]
[1746728045840,18.81063972,159.82,159.76,6.2741]
[1746728046150,18.81063972,159.81,159.77,34.27063972]
[1746728046349,18.81063972,159.81,159.77,18.81063972]
[1746728046531,6.25782227,159.8,159.78,15.46]
[1746728046974,6.25757372,159.81,159.78,15.46]
[1746728047256,6.25757372,159.81,159.78,34.27063972]
[1746728047767,6.25757372,159.81,159.78,45.55649131]
[1746728048635,6.25719619,159.82,159.78,45.55649131]
[1746728048835,30.09649131,159.81,159.78,15.46]
[1746728049241,6.25719619,159.82,159.76,6.2741]
[1746728049242,30.09649131,159.8,159.76,6.2741]
[1746728049539,30.09649131,159.79,159.77,15.46]
[1746728050432,30.09649131,159.8,159.77,15.46]
[1746728050956,36.35469659,159.8,159.77,15.46]
[1746728053062,30.09649131,159.78,159.74,1.69446598]
[1746728053261,30.09649131,159.78,159.75,15.46]
[1746728053640,30.09649131,159.77,159.75,15.46]
[1746728054482,30.09649131,159.78,159.75,15.46]
[1746728054656,30.09649131,159.78,159.76,15.46]
[1746728055555,6.25793009,159.8,159.76,15.46]
[1746728055740,30.09649131,159.79,159.76,15.46]
[1746728056364,30.09649131,159.78,159.76,15.46]
[1746728057360,136.4,159.81,159.76,15.46]
[1746728057361,30.09649131,159.8,159.76,15.46]
[1746728057541,30.09649131,159.79,159.76,15.46]
[1746728058793,30.09649131,159.78,159.76,15.46]
[1746728059748,30.09649131,159.77,159.76,15.46]
[1746728061840,36.35548861,159.77,159.76,15.46]
[1746728063269,30.09649131,159.77,159.76,15.46]
[1746728063471,138.055,159.81,159.76,15.46]
[1746728063655,30.09649131,159.78,159.76,15.46]
[1746728065870,56.09649131,159.78,159.74,1.69446598]
[1746728066173,30.09649131,159.76,159.75,15.46]
[1746728066369,36.35548861,159.77,159.75,15.46]
[1746728067264,30.09649131,159.77,159.75,15.46]
[1746728068447,36.3555475,159.77,159.75,15.46]
[1746728068653,35.77754289,159.77,159.75,15.46]
[1746728069642,6.25905619,159.77,159.75,15.46]
[1746728070058,25.07915943,159.77,159.75,15.46]
[1746728070960,25.07915943,159.77,159.76,15.46]
[1746728071781,26.0,159.78,159.76,34.28010324]
[1746728072272,6.25797717,159.8,159.76,34.28010324]
[1746728072578,6.25797717,159.8,159.78,18.82010324]
[1746728072760,6.25797717,159.8,159.77,18.82010324]
[1746728073770,6.25797717,159.8,159.76,34.28010324]
[1746728074275,153.57018027,159.85,159.78,18.82010324]
[1746728074491,18.82010324,159.84,159.79,18.82010324]
[1746728074682,18.82010324,159.83,159.79,18.82010324]
[1746728075183,18.82010324,159.83,159.78,18.82010324]
[1746728075383,6.25703916,159.82,159.78,18.82010324]
[1746728076459,6.25703916,159.82,159.78,25.07869624]
[1746728076778,25.07687064,159.83,159.78,18.82010324]
[1746728077572,25.07687064,159.83,159.78,25.07868287]
[1746728078384,18.64964886,159.79,159.74,1.69446598]
[1746728078554,26.0,159.78,159.75,15.46]
[1746728078754,18.82010324,159.76,159.75,15.46]
[1746728079681,18.82010324,159.76,159.74,1.69446598]
[1746728079682,25.07949232,159.76,159.74,1.69446598]
[1746728079855,18.82010324,159.75,159.74,1.69446598]
[1746728080055,18.82010324,159.75,159.74,17.15446598]
[1746728081084,44.82010324,159.75,159.74,17.15446598]
[1746728081267,37.61191367,159.75,159.74,1.69446598]
[1746728081582,37.61191367,159.75,159.74,17.15446598]
[1746728081760,55.19266289,159.75,159.74,17.15446598]
[1746728082785,52.05030472,159.75,159.74,15.46]
[1746728083266,30.14107156,159.66,159.64,6.6211]
[1746728083467,30.14107156,159.66,159.65,15.46]
[1746728084476,30.14107156,159.67,159.65,15.46]
[1746728086588,30.14107156,159.68,159.65,15.46]
[1746728087467,30.14107156,159.67,159.65,15.46]
[1746728088690,30.14107156,159.67,159.63,6.26445333]
[1746728088691,30.14107156,159.66,159.62,17.0274]
[1746728088889,30.14107156,159.66,159.63,15.46]
[1746728089192,30.14107156,159.66,159.64,15.46]
[1746728091394,36.40449263,159.66,159.64,15.46]
[1746728091770,30.14107156,159.66,159.64,15.46]
[1746728092198,36.40444414,159.66,159.64,15.46]
[1746728093096,30.14107156,159.65,159.59,6.3746]
[1746728093304,6.26337258,159.66,159.59,6.3746]
[1746728093305,30.14107156,159.62,159.59,6.3746]
[1746728093592,30.14107156,159.62,159.6,15.46]
[1746728093790,47.92164641,159.66,159.6,15.46]
[1746728093791,30.14107156,159.61,159.6,15.46]
[1746728095206,36.40634315,159.61,159.6,15.46]
[1746728096096,30.14107156,159.61,159.6,15.46]
[1746728096283,30.14107156,159.62,159.6,15.46]
[1746728097382,30.14107156,159.64,159.6,15.46]
[1746728097696,172.80501568,159.65,159.6,45.60107156]
[1746728097912,172.80501568,159.65,159.6,51.86668303]
[1746728098194,30.14107156,159.64,159.6,21.72561147]
[1746728098401,30.14107156,159.64,159.6,15.46]
[1746728099302,36.40516589,159.64,159.6,15.46]
[1746728100199,30.14107156,159.63,159.6,15.46]
[1746728100387,30.14107156,159.62,159.6,15.46]
[1746728100585,30.14107156,159.61,159.6,15.46]
[1746728100982,30.14107156,159.61,159.54,6.6508]
[1746728101180,30.14107156,159.58,159.55,15.46]
[1746728101587,36.40752348,159.58,159.55,15.46]
[1746728102298,36.40752348,159.58,159.5,58.1073]
[1746728102299,30.14107156,159.57,159.5,58.1073]
[1746728102505,30.14107156,159.56,159.51,15.46]
[1746728102694,30.14107156,159.56,159.51,45.60107156]
[1746728104292,30.14107156,159.57,159.52,30.14107156]
[1746728104498,6.26645192,159.58,159.52,36.40959235]
[1746728104685,6.26614185,159.59,159.53,30.14107156]
[1746728105186,30.14107156,159.57,159.53,30.14107156]
[1746728105602,30.14107156,159.57,159.53,36.40941135]
[1746728105787,36.4075296,159.58,159.53,36.40941135]
[1746728105993,30.14107156,159.57,159.53,6.26833979]
[1746728107027,36.40791737,159.57,159.52,6.26880641]
[1746728107200,36.40791737,159.57,159.52,36.40987797]
[1746728107505,30.14107156,159.57,159.52,36.40987797]
[1746728107881,30.14107156,159.57,159.53,30.14107156]
[1746728108104,30.14107156,159.55,159.54,15.46]
[1746728108585,30.14107156,159.55,159.5,30.14107156]
[1746728108780,142.66660827,159.58,159.53,30.14107156]
[1746728108986,136.4,159.58,159.54,30.14107156]
[1746728109507,172.80756075,159.58,159.53,30.14107156]
[1746728109703,161.53298043,159.58,159.53,18.86649124]
[1746728110004,155.26649124,159.58,159.53,18.86649124]
[1746728110202,161.53312726,159.58,159.53,18.86649124]
[1746728111319,155.26649124,159.58,159.53,25.13453286]
[1746728111607,136.4,159.58,159.56,18.86649124]
[1746728111906,136.4,159.58,159.57,15.46]
[1746728112099,142.66496499,159.62,159.57,34.32649124]
[1746728112292,1.5155,159.64,159.59,18.86649124]
[1746728112514,20.38199124,159.64,159.59,18.86649124]
[1746728112813,18.86649124,159.62,159.54,26.0]
[1746728112986,26.64624082,159.64,159.59,18.86649124]
[1746728113190,18.86649124,159.63,159.55,65.46]
[1746728113391,18.86649124,159.63,159.59,18.86649124]
[1746728113603,52.64624082,159.64,159.59,18.86649124]
[1746728113794,18.86649124,159.63,159.59,18.86649124]
[1746728113998,18.86649124,159.62,159.58,18.86649124]
[1746728114211,18.86649124,159.62,159.57,18.86649124]
[1746728115000,6.26527159,159.61,159.57,18.86649124]
[1746728115305,25.13152431,159.62,159.57,18.86649124]
[1746728115824,36.43742198,159.62,159.57,30.17238891]
[1746728116399,36.43742198,159.62,159.58,15.46]
[1746728117093,6.26503307,159.62,159.58,45.63238891]
[1746728117608,6.26503307,159.62,159.59,15.46]
[1746728117811,36.43742198,159.62,159.59,15.46]
[1746728119496,6.26503307,159.62,159.59,15.46]
[1746728121114,26.0,159.64,159.61,30.17238891]
[1746728121809,56.17238891,159.64,159.59,15.46]
[1746728122029,62.43663083,159.64,159.6,30.17238891]